Cogmind - Beta 12 @@@ ROGUE MODE // 2023.05.30 @ 09:16:37 Player: Chloroform Result: Destroyed by D-53 Grenadier with Mini Grenade Launcher Performance ------------- Evolutions (0) 0 Regions Visited (2) 400 Robots Destroyed (8) 40 Value Destroyed (228) 228 Prototype IDs (1) 20 Alien Tech Used (0) 0 Bonus (0) 0 TOTAL SCORE: 688 Bonus ------- None Cogmind --------- Core Integrity 0/250 Matter 300/300 Energy 100/100 System Corruption 4% Temperature Cool (0) Movement Core (350) Ox6 Location -10/Mines Parts ------- > --- POWER (1) -------- (None) > --- PROPULSION (2) --- (None) > --- UTILITY (2) ------ Large Storage Unit > --- WEAPON (2) ------- (None) > --- INVENTORY (15) --- Ion Engine Ion Engine Ion Engine Light Nuclear Core Compact Wheel Medium Storage Unit Small Matter Pod (50) Medium Matter Pod (100) Sensor Array Signal Interpreter Mining Laser Peak State ------------ > --- POWER ------------ Ion Engine > --- PROPULSION ------- Light Treads Flexi-carbon Leg > --- UTILITY ---------- Large Storage Unit Experimental Sensor Array > --- WEAPON ----------- Small Laser Light Assault Rifle > --- INVENTORY -------- Ion Engine Ion Engine Aluminum Leg Compact Wheel Medium Storage Unit Small Matter Pod Medium Matter Pod Sensor Array Signal Interpreter Mining Laser [Rating: 20] Favorites ----------- Power Ion Engine Engine Ion Engine Propulsion Light Treads Treads Light Treads Leg Aluminum Leg Utility Visual Processing Unit Device Experimental Sensor Array Storage Small Storage Unit Processor Visual Processing Unit Weapon Light Assault Rifle Energy Gun EM Pulse Gun Ballistic Gun Light Assault Rifle Special Weapon Mining Laser Build | -11 -10 -10 ------- Run | Jun Mat Min Slots Evolved . | . . . Power . | . . . Propulsion . | . . . Utility . | . . . Weapon . | . . . Parts Attached 23 | . 14 9 Power 3 | . 1 2 Engine 3 | . 1 2 Core . | . . . Reactor . | . . . Propulsion 6 | . 3 3 Treads 2 | . 2 . Leg 4 | . 1 3 Wheel . | . . . Hover . | . . . Flight . | . . . Utility 6 | . 5 1 Device 3 | . 2 1 Storage 2 | . 2 . Processor 1 | . 1 . Hackware . | . . . Protection . | . . . Artifact . | . . . Weapon 8 | . 5 3 Energy Gun 4 | . 3 1 Energy Cannon . | . . . Ballistic Gun 2 | . 1 1 Ballistic Cannon . | . . . Launcher . | . . . Special Weapon 2 | . 1 1 Impact Weapon . | . . . Slashing Weapon . | . . . Piercing Weapon . | . . . Special Melee Weapon . | . . . Unidentified Prototypes 1 | . . 1 Parts Lost 12 | . . 12 Power 2 | . . 2 Propulsion 5 | . . 5 Utility 2 | . . 2 Weapon 3 | . . 3 Highest Loss Streak 7 | . . 7 To Critical Strikes . | . . . Average Slot Usage (%) 94 | . 95 94 Engine 13 | . 13 13 Treads 19 | . 17 23 Leg 5 | . 6 4 Device 4 | . 2 7 Storage 14 | . 14 14 Processor 7 | . 10 2 Energy Gun 12 | . 12 13 Ballistic Gun 13 | . 13 13 Special Weapon 1 | . 1 . Naked Turns . | . . . Heaviest Build 28 | 13 28 28 Greatest Support 40 | 20 40 40 Greatest Overweight (x) 6 | . 3 6 Average Overweight (x) . | . . . Largest Inventory Capacity 15 | . 15 15 Average Capacity 11 | . 8 15 Most Carried 12 | . 11 12 Average Carried 9 | . 7 10 Final Capacity 15 | 8 15 15 Final Carried 11 | 6 11 11 Class Distribution -------------------- 100% | Mutant Dominant Class ---------------- Mutant | -10/Materials Mutant | -10/Mines Resources | -11 -10 -10 ----------- Run | Jun Mat Min Matter Collected 636 | 200 143 293 Remotely . | . . . Salvage Created 376 | . 301 75 Parts 22 | . 20 2 Haulers Intercepted . | . . . Recyclers Shooed 8 | . 7 1 Parts Field Recycled . | . . . Retrieved Matter . | . . . Parts Self-Destructed . | . . . Prevented . | . . . Kills | -11 -10 -10 ------- Run | Jun Mat Min Combat Hostiles Destroyed 8 | . 4 4 Guns 7 | . 3 4 AOE 1 | . 1 . Classes Destroyed 4 | . 3 1 Recycler 1 | . 1 . Watcher 2 | . 2 . Grunt 5 | . 4 1 Assembled 3 | . . 3 Best Kill Streak 2 | . 2 2 Combat Bots Only 2 | . 1 2 Max Kills in Single Turn 1 | . 1 1 Gunslinging . | . . . Exploded 1 | . 1 . Melee . | . . . Uniques/NPCs Destroyed . | . . . Combat | -11 -10 -10 -------- Run | Jun Mat Min Damage Taken 1361 | . 156 1205 Core 261 | . 20 241 Absorbed by Shields . | . . . Core Remaining (%) 100 | 100 . . Volleys Fired 60 | . 33 27 Largest 2 | . 2 2 Hottest 140 | . 100 140 Shots Fired 107 | . 56 51 Gun 98 | . 49 49 Cannon . | . . . Launcher . | . . . Special 9 | . 7 2 Kinetic 48 | . 23 25 Thermal 39 | . 18 21 Explosive . | . . . Electromagnetic 20 | . 15 5 Robot Hit Streak 6 | . 6 6 Robot Miss Streak 5 | . 5 4 Penetration Max . | . . . Secondary Targets 1 | . . 1 Max Gunslinging Chain 1 | . . 1 Shots Hit Robots 58 | . 30 28 Core Hits 30 | . 15 15 Critical Kills . | . . . Critical Parts Destroyed . | . . . Critical Strikes . | . . . Melee Attacks . | . . . Impact . | . . . Slashing . | . . . Piercing . | . . . Sneak Attacks . | . . . Combat Hostiles . | . . . Follow-up Attacks . | . . . Damage Inflicted 564 | . 348 216 Guns 525 | . 309 216 Cannons . | . . . Explosions 39 | . 39 . Melee . | . . . Ramming . | . . . Kinetic 223 | . 125 98 Thermal 166 | . 103 63 Explosive . | . . . Electromagnetic 175 | . 120 55 Impact . | . . . Slashing . | . . . Piercing . | . . . Highest Corruption 4 | . . 4 Average Corruption 4 | . . 4 Corruption Purged . | . . . Corruption Blocked . | . . . Effects 12 | . . 12 Message Errors 4 | . . 4 Matter Fused 6 | . . 6 Energy Discharges 1 | . . 1 Misfires 1 | . . 1 Overload Shots . | . . . Overflow Damage . | . . . Projectiles . | . . . Explosions . | . . . Melee . | . . . Knockbacks . | . . . Impact . | . . . Kinetic . | . . . Secondary . | . . . Self-Inflicted Damage 28 | . 28 . Shots 1 | . 1 . Rammed . | . . . Targets Rammed . | . . . Kicked . | . . . Crushed . | . . . Highest Temperature 217 | . 58 217 Average Temperature 54 | . 20 79 Received Heat Transfer 491 | . 72 419 Effects 2 | . . 2 Interference 2 | . . 2 Siege Activations . | . . . Robots Corrupted . | . . . Combat Hostiles . | . . . Parts Fried . | . . . Impact Corruptions . | . . . Robots Melted . | . . . Combat Hostiles . | . . . Parts Melted . | . . . Heat Transferred 350 | . 200 150 Parts Sabotaged . | . . . Parts Stolen . | . . . Parts Stripped . | . . . Power Chain Reactions 1 | . 1 . Missiles Intercepted . | . . . Alert | -11 -10 -10 ------- Run | Jun Mat Min Peak Influence 155 | . 155 35 Initial . | . . . Average 23 | . 37 3 Maximum Alert Level . | . . . Low Security (%) 100 | . 100 100 Level 1 . | . . . Level 2 . | . . . Level 3 . | . . . Level 4 . | . . . Level 5 . | . . . High Security . | . . . Max Security . | . . . Squads Dispatched 3 | . 3 . Investigation 2 | . 2 . Extermination . | . . . Reinforcement 1 | . 1 . Assault . | . . . Garrison . | . . . Intercept . | . . . Searches Triggered . | . . . Construction Impeded . | . . . Haulers Reinforced . | . . . Active Scanning Responses . | . . . Cargo Convoy Interrupts . | . . . Stealth | -11 -10 -10 --------- Run | Jun Mat Min Distress Signals 1 | . . 1 Communications Jammed . | . . . Distress Signals . | . . . Times Spotted 25 | . 6 19 Peak Tracking Total 14 | . 2 14 Tactical Retreats 3 | . . 3 Traps | -11 -10 -10 ------- Run | Jun Mat Min Traps Triggered 4 | . 4 . Indirectly . | . . . Trap Hack Attempts . | . . . Triggered . | . . . Disarmed . | . . . Reprogrammed . | . . . Reused . | . . . Traps Extracted . | . . . Installed . | . . . Triggered . | . . . Machines | -11 -10 -10 ---------- Run | Jun Mat Min Machines Disabled 2 | . 2 . Max in Single Turn 2 | . 2 . Machines Repaired . | . . . Machines Sabotaged . | . . . Overloaded Fab Kills . | . . . Hacking | -11 -10 -10 --------- Run | Jun Mat Min Machines Accessed 3 | . 3 . Terminals 3 | . 3 . Fabricators . | . . . Repair Stations . | . . . Recycling Units . | . . . Scanalyzers . | . . . Garrison Access . | . . . Total Hacks 9 | . 9 . Successful 7 | . 7 . Failed 2 | . 2 . Catastrophic . | . . . Database Lockouts . | . . . Manual 6 | . 6 . Terminals 9 | . 9 . Fabricators . | . . . Repair Stations . | . . . Recycling Units . | . . . Scanalyzers . | . . . Garrison Access . | . . . Terminal Hacks 3 | . 3 . Branch Access Points 1 | . 1 . Locate Traps 1 | . 1 . Zone Layout 1 | . 1 . Fabricator Hacks . | . . . Repair Station Hacks . | . . . Recycling Unit Hacks . | . . . Scanalyzer . | . . . Garrison Access Hacks . | . . . Unauthorized Hacks 4 | . 4 . Terminals 4 | . 4 . Track 1 | . 1 . Botnet 3 | . 3 . Fabricators . | . . . Repair Stations . | . . . Recycling Units . | . . . Scanalyzers . | . . . Garrison Access . | . . . Data Cores Recovered . | . . . Used . | . . . Hacking Detections 1 | . 1 . Full Trace Events . | . . . Feedback Events . | . . . Feedback Blocked . | . . . Robot Schematics Acquired . | . . . Robots Built . | . . . Authchips . | . . . Time . | . . . Total Robot Build Rating . | . . . Part Schematics Acquired . | . . . Parts Built . | . . . Authchips . | . . . Time . | . . . Total Part Build Rating . | . . . Parts Repaired . | . . . Time . | . . . Parts Recycled . | . . . Recycled Matter . | . . . Retrieved Matter . | . . . Retrieved Components . | . . . Parts Scanalyzed . | . . . Part Schematics Acquired . | . . . Parts Damaged . | . . . Bothacking | -11 -10 -10 ------------ Run | Jun Mat Min Used RIF Installer . | . . . Robots Hacked . | . . . Non-combat . | . . . Combat . | . . . Robot Hacks Applied . | . . . Relay Couplers Released . | . . . Fabnet Peak Effective % . | . . . Robots Rewired . | . . . Allies Hacked . | . . . Hacks Repelled . | . . . Allies | -11 -10 -10 -------- Run | Jun Mat Min Total Allies . | . . . Largest Group . | . . . Highest-Rated Group . | . . . Highest-Rated Ally . | . . . Total Orders . | . . . Ally Attacks . | . . . Total Damage . | . . . Kills . | . . . Allies Corrupted . | . . . Allies Melted . | . . . Intel | -11 -10 -10 ------- Run | Jun Mat Min Robot Analysis Total . | . . . Derelict Logs Recovered 1 | . . 1 Drone Launches . | . . . Drone Recoveries . | . . . Exploration | -11 -10 -10 ------------- Run | Jun Mat Min Turns Passed 1570 | . 921 649 Spaces Moved 803 | 1 480 322 Core 4 | . 3 1 Treads 596 | . 320 276 Legs 203 | 1 157 45 Wheels . | . . . Hover . | . . . Flight . | . . . Fastest Speed 100 | 120 100 120 Average Speed 157 | 120 158 156 Slowest Speed 350 | 120 200 350 Overloaded Moves . | . . . Propulsion Burnouts . | . . . Robots Hopped . | . . . Cave-ins Triggered . | . . . Exploration Rate (%) 42 | 2 71 54 Regions Visited 2 Branch Regions 1 Pre-discovered Areas 1 | . . 1 Known Exits Taken 1 | . 1 . Unknown Exits Taken 1 | 1 . . Scrap Searched 1 | . . 1 Spaces Dug 8 | . 6 2 Terrain Destroyed 11 | . 9 2 Melee . | . . . Projectile 9 | . 7 2 AOE 2 | . 2 . Terrain Rammed . | . . . Walls Destroyed . | . . . Machines Disabled . | . . . Actions | -11 -10 -10 --------- Run | Jun Mat Min Total 992 | . 572 420 Wait 88 | . 32 56 Move 801 | . 479 322 Hop . | . . . Pick Up 15 | . 9 6 Fast Attach 6 | . 6 . Attach 8 | . 2 6 Detach . | . . . Swap 9 | . 6 3 Drop 5 | . 5 . Fire 60 | . 33 27 Melee . | . . . Ram . | . . . Kick . | . . . Crush . | . . . Escape Stasis . | . . . Rewire . | . . . Trap . | . . . Miscellaneous . | . . . Route ------- -11/Junkyard -10/Materials (discovered 4 exits: [*Mat x2] / *Min x2) -10/Mines History --------- Turn | Location | Event 1 | -11/Junkyard | Discovered new exit (range 0) 1 | -11/Junkyard | Entered Materials 160 | -10/Materials | Discovered new exit (range 16) 317 | -10/Materials | Build established: Mutant 347 | -10/Materials | Discovered new exit (range 16) 347 | -10/Materials | Identified exit to Mines 922 | -10/Materials | Entered Mines 937 | -10/Mines | Met a Derelict bent on vengeance 1016 | -10/Mines | Assembled infested the area 1021 | -10/Mines | Assisted by a Guerilla fighting off Assembled 1076 | -10/Mines | Lost 3 parts (1p1u1w) 1092 | -10/Mines | Learned location of Recycling (-7) 1196 | -10/Mines | Found a damaged Exp. Sensor Array with a note attached 1199 | -10/Mines | Found Prototype Device 1207 | -10/Mines | Identified Exp. Sensor Array 1564 | -10/Mines | Core integrity fell below 50% 1566 | -10/Mines | Core integrity fell below 20% 1571 | -10/Mines | Destroyed by D-53 Grenadier with Mini Grenade Launcher Last Messages --------------- 01487_ G-47 Trooper destroyed. 01497_ Overheating: System interference. 01497_ Exp. Sensor Array temporarily disabled. 01497_ Sml. Laser temporarily disabled. 01499_ G-34 Mercenary destroyed. 01502_ Acquired Lgt. Nuclear Core. 01502_ R-06 Scavenger collects Heat Sink. 01503_ Acquired 41 matter. 01510_ Acquired Aluminum Leg. 01511_ Acquired 39 matter. 01514_ Acquired Ion Engine. 01544_ Acquired 33 matter. 01561_ Aluminum Leg destroyed. 01562_ Lgt. Assault Rifle destroyed. 01562_ Ion Engine destroyed. 01562_ Flexi-carbon Leg destroyed. 01564_ Sml. Laser destroyed. 01567_ Exp. Sensor Array destroyed. 01568_ The unstable cave ceiling collapses. 01569_ Aluminum Leg destroyed. Map ----- +----------------------------------------------------+ | ????????????????????????????????????????????????? | | ????????????????????????????????????????????????? | | ????????????????????????????????????????????????? | | ????????????????????????????????????????????????? | | ?????????????????????????????????????????? | | ???????????????????????????????????????????? | | ????????????????????????????????????????????????? | | ????????????????????????????????????????????????? | | ????????????????????????????????????????????????? | | ????????????????????????????????????????????????? | | ?????????????????????????? ?????????????????????? | | ?????????????????????????? ""???????????????????? | | ?????????????????????????? ???????????????????? | | ?????????????????????????? #???????????????????? | | ?????????????????????????? #???????????????????? | | ?????????????????????????# ##??????????????????? | | ???????????????????????## #??????????????????? | | ??????????????????????## ???????????????????? | | ?????????????????????## ????????????????????? | | ?????????????????????# #????????????????????? | | ????????????????????## % #????????????????????? | | ???????????????????## dd ###??????????????????? | | ??????????????????## #??????????????????? | | ????????????????## #??????????????????? | | ????????????## ##??????????????????? | | #####???????????# @ ###????????????????? | | ????????????????# #????????????????? | | ????????????????## #??????????????? | | ?????????????????# #?????????????? | | ?????????????????# ???????????? | | ?????????????????# k# ### ?????????? | | ?????????????????### # ##?? ####?????????? | | ?????????????????# ####???? #???????????? | | ?????????????##### ###??????? #???????????? | | ?????????????# #?????????? #???????????? | | ?????????????#%#####?????????? ##???????????? | | ?????????????# #??????????????? #????????????? | | ?????????????# #??????????????? ?????????????? | | ??????###????# #???????????????? ???????????????? | | ?????## ##??# #????????????????????????????????? | | ?????# #### #????????????????????????????????? | | ?????# #????????????????????????????????? | | ??????# ### #????????????????????????????????? | | ####### ??# #????????????????????????????????? | | # ## #### #????????????????????????????????? | | # ### ## #????????????????????????????????? | | # # # ## ######????????????????????????????????? | | #?# ## #?????????????????????????????????????? | | ##### # #?????????????????????????????????????? | | ???# #?????????????????????????????????????? | +----------------------------------------------------+ Best States ------------- Heat Dissipation 35 Energy Generation 10 Energy Capacity 250 Matter Stores 300 Matter Capacity 300 Sight Range 18 Robot Scan Range 20 Terrain Scan Density 10 Evasion (%) 55 Recoil Reduction 2 Item Schematics ----------------- None Robot Schematics ------------------ None Fabricated ------------ Nothing Alien Tech Used ----------------- None Achievements -------------- None Challenges ------------ None Game ------ Seed FluxComponentBrace Manual? 0 Play Time 00:15:03 Cumulative 10.2 hours Start 2023.05.30 @ 09:05:12 End 2023.05.30 @ 09:16:37 Sessions 1 Manual Loads 0 Difficulty Rogue Special Mode None Game No. 10 Rogue 10 Adventurer 0 Explorer 0 Win Type - Total 0 Types 0/0/0/0/0/0/0/0/0 Lore% 14 Gallery% 19 Achievement% 22 Wizard Run 0 Options --------- ASCII 0 Keyboard 0 Movement Mouse Keybinds 0 Fullscreen 2 Font 18/SmallcapsGlow Map View 76x50 Tactical HUD 1 Map Filters NONE Filters NONE Steam 1 RUN: 0cda7202-60f2-4e0a-a563-b26c71d3c901